bitfinex/quotes_BTCUSD_20250215
["timestamp","ask_amount","ask_price","bid_price","bid_amount"]
[1739651426880,0.38958442,97567.0,97566.0,0.003142]
[1739651427089,0.38958442,97567.0,97566.0,0.002142]
[1739651427502,0.38958442,97567.0,97566.0,0.003142]
[1739651427901,0.71118442,97567.0,97566.0,0.001142]
[1739651428102,0.71118442,97567.0,97566.0,0.003142]
[1739651434221,0.55744442,97567.0,97566.0,0.003142]
[1739651434535,0.66428442,97567.0,97566.0,0.003142]
[1739651444544,0.66428442,97567.0,97566.0,0.001142]
[1739651444746,0.66428442,97567.0,97566.0,0.000142]
[1739651445159,0.66528442,97567.0,97566.0,0.000142]
[1739651450833,0.66428442,97567.0,97566.0,0.000142]
[1739651451212,0.66528442,97567.0,97566.0,0.000142]
[1739651451811,0.66628442,97567.0,97566.0,0.000142]
[1739651453114,0.71578442,97567.0,97566.0,0.000142]
[1739651454975,0.86578442,97567.0,97566.0,0.000142]
[1739651458703,0.86478442,97567.0,97566.0,0.000142]
[1739651458926,0.87178442,97567.0,97566.0,0.000142]
[1739651459119,0.87078442,97567.0,97566.0,0.000142]
[1739651459507,0.87578442,97567.0,97566.0,0.001142]
[1739651463405,0.82628442,97567.0,97566.0,0.001142]
[1739651463584,0.74728442,97567.0,97566.0,0.001142]
[1739651466306,0.82348442,97567.0,97566.0,0.001142]
[1739651467323,0.87288442,97567.0,97566.0,0.001142]
[1739651467550,0.90481476,97567.0,97566.0,0.001142]
[1739651472023,0.92517596,97567.0,97566.0,0.001142]
[1739651472228,0.92017596,97567.0,97566.0,0.000142]
[1739651472520,0.92417596,97567.0,97566.0,0.001142]
[1739651473287,0.31118777,97562.0,97561.0,0.000142]
[1739651473493,0.52182176,97562.0,97561.0,0.000142]
[1739651474135,0.62684652,97562.0,97561.0,0.000142]
[1739651474774,0.63384652,97562.0,97561.0,0.000142]
[1739651475343,0.64084652,97562.0,97561.0,0.000142]
[1739651475578,0.98544652,97562.0,97561.0,0.000142]
[1739651480752,0.98954952,97562.0,97561.0,0.000142]
[1739651481946,0.96654952,97562.0,97561.0,0.000142]
[1739651482159,0.91714952,97562.0,97561.0,0.000142]
[1739651489089,0.84094952,97562.0,97561.0,0.000142]
[1739651498607,0.9830427,97562.0,97561.0,0.000142]
[1739651498859,0.303754,97558.0,97557.0,0.000142]
[1739651499027,0.40625765,97558.0,97557.0,0.000142]
[1739651499234,0.76722776,97558.0,97557.0,0.000142]
[1739651499438,0.84942776,97558.0,97557.0,0.000142]
[1739651500199,0.87242776,97558.0,97557.0,0.000142]
[1739651501401,0.85642776,97558.0,97557.0,0.001142]
[1739651501605,0.86342776,97558.0,97557.0,0.001142]
[1739651502085,0.78122776,97558.0,97557.0,0.001142]
[1739651510242,0.77378799,97558.0,97557.0,0.001142]
[1739651510444,0.78122776,97558.0,97557.0,0.001142]
[1739651510873,0.63122776,97558.0,97557.0,0.001142]
[1739651511072,0.59929742,97558.0,97557.0,0.001142]
[1739651511822,0.74929742,97558.0,97557.0,0.001142]
[1739651512036,0.74229742,97558.0,97557.0,0.001142]
[1739651512371,0.74929742,97558.0,97557.0,0.001142]
[1739651512969,0.74229742,97558.0,97557.0,0.000142]
[1739651513173,0.74929742,97558.0,97557.0,0.001142]
[1739651521123,0.78126721,97558.0,97557.0,0.001142]
[1739651522758,0.74929742,97558.0,97557.0,0.001142]
[1739651523077,0.78126755,97558.0,97557.0,0.001142]
[1739651535169,0.74929742,97558.0,97557.0,0.001142]
[1739651546618,0.78128733,97558.0,97557.0,0.001142]
[1739651547633,0.74929742,97558.0,97557.0,0.001142]
[1739651547852,0.7812867,97558.0,97557.0,0.001142]
[1739651548463,0.74929742,97558.0,97557.0,0.001142]
[1739651549394,0.78128751,97558.0,97557.0,0.001142]
[1739651549604,0.74929742,97558.0,97557.0,0.001142]
[1739651550661,0.78128617,97558.0,97557.0,0.001142]
[1739651551302,0.74929742,97558.0,97557.0,0.001142]
[1739651552097,0.78128564,97558.0,97557.0,0.001142]
[1739651552434,0.74929742,97558.0,97557.0,0.001142]
[1739651552824,0.58810365,97558.0,97557.0,0.001142]
[1739651553021,0.44554342,97558.0,97557.0,0.001142]
[1739651553841,0.44554342,97558.0,97557.0,0.000142]
[1739651553842,0.43854342,97558.0,97557.0,0.000142]
[1739651554053,0.43110365,97558.0,97557.0,0.154898]
[1739651554454,0.43810365,97558.0,97557.0,0.154898]
[1739651554664,0.43110365,97558.0,97557.0,0.236298]
[1739651554869,0.43110365,97558.0,97557.0,0.237298]
[1739651555183,0.43810365,97558.0,97557.0,0.237298]
[1739651555388,0.43110365,97558.0,97557.0,0.236298]
[1739651556792,0.43810365,97558.0,97557.0,0.237298]
[1739651558580,0.43810365,97558.0,97557.0,0.083542]
[1739651561441,0.43810365,97558.0,97557.0,0.237298]
[1739651561847,0.43810365,97558.0,97557.0,0.083542]
[1739651563103,0.42410365,97558.0,97557.0,0.082542]
[1739651563278,0.42710365,97558.0,97557.0,0.082542]
[1739651563525,0.43010365,97558.0,97557.0,0.082542]
[1739651563655,0.43010365,97558.0,97557.0,0.236298]
[1739651563858,0.42710365,97558.0,97557.0,0.236298]
[1739651564060,0.43010365,97558.0,97557.0,0.236298]
[1739651566640,0.3276,97558.0,97557.0,0.236298]
[1739651567045,0.3246,97558.0,97557.0,0.236298]
[1739651567256,0.3216,97558.0,97557.0,0.236298]
[1739651567554,0.3266,97558.0,97557.0,0.236298]
[1739651567755,0.3216,97558.0,97557.0,0.236298]
[1739651568133,0.3236,97558.0,97557.0,0.236298]
[1739651569294,0.3256,97558.0,97557.0,0.236298]
[1739651572441,0.3256,97558.0,97557.0,0.082542]
[1739651572721,0.58185765,97558.0,97557.0,0.000142]
[1739651573078,0.58929742,97558.0,97557.0,0.000142]
[1739651574187,0.58729742,97558.0,97557.0,0.000142]
[1739651574597,0.59429742,97558.0,97557.0,0.000142]
[1739651575209,0.74229742,97558.0,97557.0,0.000142]
[1739651575655,0.74929742,97558.0,97557.0,0.001142]
[1739651575830,0.74229742,97558.0,97557.0,0.001142]
[1739651576049,0.74229742,97558.0,97557.0,0.000142]
[1739651576434,0.74929742,97558.0,97557.0,0.001142]
[1739651576628,0.75629742,97558.0,97557.0,0.001142]
[1739651576856,0.74929742,97558.0,97557.0,0.000142]
[1739651577013,0.73529742,97558.0,97557.0,0.000142]
[1739651577213,0.74929742,97558.0,97557.0,0.001142]
[1739651577676,0.74229742,97558.0,97557.0,0.001142]
[1739651577887,0.74929742,97558.0,97557.0,0.001142]
[1739651578434,0.74229742,97558.0,97557.0,0.000142]
[1739651578639,0.74185765,97558.0,97557.0,0.001142]
[1739651578863,0.74929742,97558.0,97557.0,0.001142]
[1739651584855,0.58810365,97558.0,97557.0,0.001142]
[1739651585068,0.74929742,97558.0,97557.0,0.001142]
[1739651586299,0.58810365,97558.0,97557.0,0.001142]
[1739651588923,0.74185765,97558.0,97557.0,0.001142]
[1739651590913,0.74929742,97558.0,97557.0,0.001142]
[1739651602495,0.82519742,97558.0,97557.0,0.001142]
[1739651603294,0.85715586,97558.0,97557.0,0.001142]
[1739651603419,0.82519742,97558.0,97557.0,0.001142]
[1739651603620,0.85715483,97558.0,97557.0,0.001142]
[1739651606855,0.87780528,97558.0,97557.0,0.001142]
[1739651608269,0.94670528,97558.0,97557.0,0.001142]
[1739651609049,0.93270528,97558.0,97557.0,0.000142]
[1739651609489,0.93970528,97558.0,97557.0,0.000142]
[1739651611707,0.94670528,97558.0,97557.0,0.000142]
[1739651614028,0.87780528,97558.0,97557.0,0.000142]
[1739651618202,0.84584787,97558.0,97557.0,0.000142]
[1739651618606,0.87772846,97558.0,97557.0,0.000142]
[1739651619443,0.84584787,97558.0,97557.0,0.000142]
[1739651619990,0.87772779,97558.0,97557.0,0.000142]
[1739651620200,0.84584787,97558.0,97557.0,0.000142]
[1739651620346,0.87772947,97558.0,97557.0,0.000142]
[1739651632930,0.80182947,97558.0,97557.0,0.000142]
[1739651634029,0.78117902,97558.0,97557.0,0.000142]
[1739651662936,0.74929742,97558.0,97557.0,0.000142]
[1739651667055,0.303756,97557.0,97556.0,0.04232778]
[1739651667269,0.43822054,97557.0,97556.0,0.04232778]
[1739651667446,0.40625965,97557.0,97556.0,0.04232778]
[1739651668229,0.41325965,97557.0,97556.0,0.04232778]
[1739651668432,0.42069942,97557.0,97556.0,0.04232778]
[1739651668634,0.74929942,97557.0,97556.0,0.04232778]
[1739651670491,0.58810365,97557.0,97556.0,0.04232778]
[1739651670690,0.43810365,97557.0,97556.0,0.12402778]
[1739651671061,0.58810365,97557.0,97556.0,0.12402778]
[1739651671261,0.57410365,97557.0,97556.0,0.12402778]
[1739651671840,0.58810365,97557.0,97556.0,0.12402778]
[1739651672165,0.74585965,97557.0,97556.0,0.12402778]
[1739651672421,0.59210365,97557.0,97556.0,0.12402778]
[1739651673420,0.58510365,97557.0,97556.0,0.12402778]
[1739651673941,0.58810365,97557.0,97556.0,0.12402778]
[1739651674701,0.58510365,97557.0,97556.0,0.12402778]
[1739651674909,0.58610365,97557.0,97556.0,0.12402778]
[1739651676452,0.58910365,97557.0,97556.0,0.27778478]
[1739651676849,0.59010365,97557.0,97556.0,0.27778478]
[1739651677255,0.58910365,97557.0,97556.0,0.27778478]
[1739651677659,0.59010365,97557.0,97556.0,0.27778478]
[1739651677857,0.57510365,97557.0,97556.0,0.27778478]
[1739651678071,0.57610365,97557.0,97556.0,0.27778478]
[1739651678260,0.57710365,97557.0,97556.0,0.27778478]
[1739651678688,0.57910365,97557.0,97556.0,0.27792678]
[1739651678887,0.57938765,97557.0,97556.0,0.27792678]
[1739651679495,0.57938765,97557.0,97556.0,0.12416978]
[1739651680564,0.57938765,97557.0,97556.0,0.27792678]
[1739651680770,0.476884,97557.0,97556.0,0.27792678]
[1739651682755,0.476884,97557.0,97556.0,0.12416978]
[1739651701118,0.476884,97557.0,97556.0,0.04246978]
[1739651707776,0.476884,97557.0,97556.0,0.000142]
[1739651708025,0.63064,97557.0,97556.0,0.000142]
[1739651708364,0.476884,97557.0,97556.0,0.000142]
[1739651711697,0.476884,97557.0,97556.0,0.153899]
[1739651714848,0.326884,97557.0,97556.0,0.153899]
[1739651715056,0.005284,97557.0,97556.0,0.280899]
[1739651731251,0.005284,97557.0,97556.0,0.000142]
[1739651732440,0.15904,97557.0,97556.0,0.000142]
[1739651732861,0.005284,97557.0,97556.0,0.000142]
[1739651733594,0.15904,97557.0,97556.0,0.000142]
[1739651734100,0.005284,97557.0,97556.0,0.000142]
[1739651738269,0.15904,97557.0,97556.0,0.000142]
[1739651743519,0.26154365,97557.0,97556.0,0.000142]
[1739651743721,0.41898342,97557.0,97556.0,0.000142]
[1739651745952,0.74058342,97557.0,97556.0,0.000142]
[1739651771297,0.82378342,97557.0,97556.0,0.000142]
[1739651776550,0.74058342,97557.0,97556.0,0.000142]
[1739651784719,0.58682742,97557.0,97556.0,0.000142]
[1739651784927,0.74058342,97557.0,97556.0,0.000142]
[1739651787297,0.57938765,97557.0,97556.0,0.153899]
[1739651787543,0.476884,97557.0,97556.0,0.153899]
[1739651787751,0.326884,97557.0,97556.0,0.153899]
[1739651793427,0.005284,97557.0,97556.0,0.153899]
[1739651801501,0.005284,97557.0,97556.0,0.000142]
[1739651802348,0.15904,97557.0,97556.0,0.000142]
[1739651802552,0.005284,97557.0,97556.0,0.000142]
[1739651803263,0.15904,97557.0,97556.0,0.000142]
[1739651803397,0.005284,97557.0,97556.0,0.000142]
[1739651805796,0.005284,97557.0,97556.0,0.153899]
[1739651807639,0.005284,97557.0,97556.0,0.000142]
[1739651808582,0.005284,97557.0,97556.0,0.153899]
[1739651808778,0.005284,97557.0,97556.0,0.000142]
[1739651811434,0.15904,97557.0,97556.0,0.000142]
[1739651813528,0.26898342,97557.0,97556.0,0.000142]
[1739651817135,0.59058342,97557.0,97556.0,0.000142]
[1739651832528,0.74058342,97557.0,97556.0,0.000142]
[1739651836770,0.59058342,97557.0,97556.0,0.000142]
[1739651851393,0.42938765,97557.0,97556.0,0.000142]
[1739651851851,0.42938765,97557.0,97556.0,0.153899]
[1739651852082,0.326884,97557.0,97556.0,0.153899]
[1739651852287,0.005284,97557.0,97556.0,0.153899]
[1739651852515,0.005284,97557.0,97556.0,0.277799]
[1739651853103,0.000284,97557.0,97556.0,0.277799]
[1739651853581,0.001284,97557.0,97556.0,0.277799]
[1739651853781,0.001284,97557.0,97556.0,0.29805649]
[1739651854681,0.000284,97557.0,97556.0,0.29805649]
[1739651854880,0.001284,97557.0,97556.0,0.277799]
[1739651855291,0.001284,97557.0,97556.0,0.153899]
[1739651858066,0.000284,97557.0,97556.0,0.002142]
[1739651858431,0.000284,97557.0,97556.0,0.000142]
[1739651858642,0.000284,97557.0,97556.0,0.001142]
[1739651858846,0.000284,97557.0,97556.0,0.000142]
[1739651859048,0.000284,97557.0,97556.0,0.002142]
[1739651859290,0.000284,97557.0,97556.0,0.003142]
[1739651859489,0.000284,97557.0,97556.0,0.000142]
[1739651860932,0.000284,97557.0,97556.0,0.002142]
[1739651862948,0.000284,97557.0,97556.0,0.000142]
[1739651864884,0.000284,97557.0,97556.0,0.002142]
[1739651865287,0.000284,97557.0,97556.0,0.000142]
[1739651865614,0.000284,97557.0,97556.0,0.002142]
[1739651866290,0.000284,97557.0,97556.0,0.000142]
[1739651866500,0.000284,97557.0,97556.0,0.002142]
[1739651868335,0.000284,97557.0,97556.0,0.000142]
[1739651868839,0.000284,97557.0,97556.0,0.002142]
[1739651873722,0.15404,97557.0,97556.0,0.002142]
[1739651873924,0.000284,97557.0,97556.0,0.002142]
[1739651876537,0.15404,97557.0,97556.0,0.002142]
[1739651877825,0.15404,97557.0,97556.0,0.000142]
[1739651878168,0.15404,97557.0,97556.0,0.002142]
[1739651878526,0.15404,97557.0,97556.0,0.000142]
[1739651878932,0.15504,97557.0,97556.0,0.000142]
[1739651879465,0.15704,97557.0,97556.0,0.000142]
[1739651881164,0.26698342,97557.0,97556.0,0.000142]
[1739651882241,0.26598342,97557.0,97556.0,0.000142]
[1739651883018,0.26898342,97557.0,97556.0,0.000142]
[1739651885590,0.59058342,97557.0,97556.0,0.000142]
[1739651888159,0.58758342,97557.0,97556.0,0.000142]
[1739651888312,0.58558342,97557.0,97556.0,0.000142]
[1739651888516,0.58858342,97557.0,97556.0,0.000142]
[1739651888926,0.59058342,97557.0,97556.0,0.000142]
[1739651889132,0.58958342,97557.0,97556.0,0.000142]
[1739651889352,0.59058342,97557.0,97556.0,0.000142]
[1739651904674,0.60099558,97557.0,97556.0,0.000142]
[1739651904825,0.59058342,97557.0,97556.0,0.000142]
[1739651908336,0.58314365,97557.0,97556.0,0.000142]
[1739651908739,0.42938765,97557.0,97556.0,0.000142]
[1739651909134,0.326884,97557.0,97556.0,0.153899]
[1739651909748,0.325884,97557.0,97556.0,0.153899]
[1739651909901,0.321884,97557.0,97556.0,0.153899]
[1739651910104,0.322884,97557.0,97556.0,0.153899]
[1739651910313,0.324884,97557.0,97556.0,0.153899]
[1739651910734,0.322884,97557.0,97556.0,0.153899]
[1739651911165,0.321884,97557.0,97556.0,0.153899]
[1739651911379,0.322884,97557.0,97556.0,0.153899]
[1739651912296,0.321884,97557.0,97556.0,0.153899]
[1739651912413,0.321884,97557.0,97556.0,0.155899]
[1739651918145,0.321884,97557.0,97556.0,0.002142]
[1739651918395,0.321884,97557.0,97556.0,0.155899]
[1739651918640,0.321884,97557.0,97556.0,0.002142]
[1739651919137,0.47564,97557.0,97556.0,0.002142]
[1739651919633,0.58558342,97557.0,97556.0,0.002142]
[1739651919875,0.58558342,97557.0,97556.0,0.000142]
[1739651920838,0.58858342,97557.0,97556.0,0.000142]
[1739651921039,0.58558342,97557.0,97556.0,0.000142]
[1739651921293,0.58558342,97557.0,97556.0,0.002142]
[1739651921533,0.58958342,97557.0,97556.0,0.002142]
[1739651921841,0.58958342,97557.0,97556.0,0.000142]
[1739651922204,0.59258342,97557.0,97556.0,0.000142]
[1739651928489,0.59258342,97557.0,97556.0,0.000142]
[1739651950133,0.74258342,97557.0,97556.0,0.000142]
[1739651950255,0.86498342,97557.0,97556.0,0.000142]
[1739651950465,0.91998284,97557.0,97556.0,0.000142]
[1739651951073,0.91298284,97557.0,97556.0,0.000142]
[1739651951550,0.92698284,97557.0,97556.0,0.000142]
[1739651953729,0.90398284,97557.0,97556.0,0.000142]
[1739651953945,0.87198342,97557.0,97556.0,0.000142]
[1739651956568,0.82508342,97557.0,97556.0,0.000142]
[1739651956907,0.74958342,97557.0,97556.0,0.000142]
[1739651961369,0.82618342,97557.0,97556.0,0.000142]
[1739651962605,0.89668342,97557.0,97556.0,0.000142]
[1739651963034,0.326757,97556.0,97555.0,0.000284]
[1739651963262,0.54524481,97556.0,97555.0,0.00041535]
[1739651964099,0.55224481,97556.0,97555.0,0.00041535]
[1739651965127,0.55924481,97556.0,97555.0,0.00041535]
[1739651965777,0.88084481,97556.0,97555.0,0.00041535]
[1739651969036,0.45829877,97555.0,97554.0,3.5e-07]
[1739651969182,0.59274681,97555.0,97554.0,8.3e-07]
[1739651969388,0.64837949,97555.0,97554.0,8.3e-07]
[1739651970210,0.66237949,97555.0,97554.0,8.3e-07]
[1739651971270,0.65537949,97555.0,97554.0,8.3e-07]
[1739651971691,0.66237949,97555.0,97554.0,8.3e-07]
[1739651972662,0.65537949,97555.0,97554.0,8.3e-07]
[1739651973520,0.66237949,97555.0,97554.0,8.3e-07]
[1739651974606,1.07585046,97555.0,97554.0,8.3e-07]
[1739651975387,1.09680866,97555.0,97554.0,8.3e-07]
[1739651975600,1.10680866,97555.0,97554.0,8.3e-07]
[1739651976548,1.09980866,97555.0,97554.0,8.3e-07]
[1739651977437,1.10680866,97555.0,97554.0,8.3e-07]
[1739651978279,0.378979,97542.0,97541.0,0.000284]
[1739651978484,0.87218265,97542.0,97541.0,0.00032773]
[1739651979458,0.87918265,97542.0,97541.0,0.00032773]
[1739651979808,0.89362242,97542.0,97541.0,7.3e-07]
[1739651979952,0.91150944,97542.0,97541.0,7.3e-07]
[1739651980359,0.92550944,97542.0,97541.0,7.3e-07]
[1739651989921,1.02801309,97542.0,97541.0,7.3e-07]
[1739651990122,0.92550944,97542.0,97541.0,7.3e-07]
[1739651995340,0.92550944,97542.0,97541.0,0.00014273]
[1739651995658,0.92579344,97542.0,97541.0,0.00014273]
[1739651997759,0.93605243,97542.0,97541.0,0.00014273]
[1739651999422,0.78227343,97542.0,97513.0,0.04583528]
[1739651999646,0.153824,97514.0,97513.0,0.04583528]
[1739651999872,0.57792765,97514.0,97513.0,0.04583528]
[1739652000533,0.57792765,97514.0,97513.0,0.12573528]
[1739652000726,0.58536742,97514.0,97513.0,0.12573528]
[1739652000929,0.59236742,97514.0,97513.0,0.12573528]
[1739652001786,0.74236742,97514.0,97513.0,0.12573528]
[1739652002558,0.74936742,97514.0,97513.0,0.12573528]
[1739652006599,0.74936742,97514.0,97513.0,0.04583528]
[1739652006815,0.303827,97512.0,97507.0,0.0778]
[1739652007070,0.40633065,97512.0,97507.0,0.0778]
[1739652008107,0.40937453,97512.0,97507.0,0.0778]
[1739652008848,0.41237453,97512.0,97507.0,0.0778]
[1739652010549,0.73397453,97512.0,97507.0,0.0778]
[1739652011514,0.7414143,97512.0,97507.0,0.0778]
[1739652011974,0.7414143,97512.0,97504.0,0.1264]
[1739652012185,0.7733981,97512.0,97504.0,0.1264]
[1739652012815,0.7703981,97512.0,97504.0,0.1264]
[1739652013231,0.7673981,97512.0,97504.0,0.0778]
[1739652013438,0.7673981,97512.0,97495.0,0.0486]
[1739652013439,0.7743981,97512.0,97495.0,0.0486]
[1739652014185,0.7813981,97512.0,97495.0,0.0486]
[1739652014804,0.7424143,97512.0,97495.0,0.0486]
[1739652015001,0.7743778,97512.0,97495.0,0.0486]
[1739652015199,0.7813778,97512.0,97495.0,0.0486]
[1739652016049,0.7494143,97512.0,97495.0,0.0486]
[1739652016251,0.78137261,97512.0,97495.0,0.0486]
[1739652016476,0.7494143,97512.0,97495.0,0.0486]
[1739652018235,0.153846,97500.0,97495.0,0.046814]
[1739652018449,0.25635065,97499.0,97495.0,0.046814]
[1739652019626,0.15385,97498.0,97495.0,0.046814]
[1739652019833,0.10250365,97497.0,97495.0,0.046814]
[1739652021230,0.10450365,97497.0,97495.0,0.046814]
[1739652021396,0.10250365,97497.0,97495.0,0.046814]
[1739652021627,0.10450365,97497.0,97495.0,0.046814]
[1739652021929,0.10250365,97497.0,97495.0,0.046814]
[1739652022125,0.3216,97496.0,97495.0,0.046814]
[1739652022320,0.42410365,97496.0,97495.0,0.046814]
[1739652023356,0.3216,97496.0,97495.0,0.046814]
[1739652023554,0.3216,97496.0,97495.0,0.276868]
[1739652024352,0.3226,97496.0,97495.0,0.276868]
[1739652024561,0.3216,97496.0,97495.0,0.276868]
[1739652026496,4.388e-05,97512.0,97511.0,0.199128]
[1739652026698,4.388e-05,97512.0,97511.0,0.275328]
[1739652027843,0.00704388,97512.0,97511.0,0.275328]
[1739652028036,0.01404388,97512.0,97511.0,0.275328]
[1739652028238,0.00704388,97512.0,97511.0,0.275328]
[1739652028378,4.388e-05,97512.0,97511.0,0.275328]
[1739652031518,4.388e-05,97512.0,97511.0,0.27547]
[1739652032283,4.388e-05,97512.0,97511.0,0.27747]
[1739652033724,4.388e-05,97512.0,97511.0,0.27547]
[1739652045520,0.25637453,97512.0,97511.0,0.000142]
[1739652046138,0.10254753,97512.0,97511.0,0.000142]
[1739652048415,0.40637453,97512.0,97511.0,0.000142]
[1739652049019,0.72797453,97512.0,97511.0,0.000142]
[1739652055523,0.57414753,97512.0,97511.0,0.000142]
[1739652058040,0.57443153,97512.0,97511.0,0.000142]
[1739652069479,0.72825853,97512.0,97511.0,0.000142]
[1739652069694,0.57443153,97512.0,97511.0,0.000142]
[1739652071904,0.72825853,97512.0,97511.0,0.000142]
[1739652085249,0.57443153,97512.0,97511.0,0.000142]
[1739652085459,0.72825853,97512.0,97511.0,0.000142]
[1739652085665,0.57443153,97512.0,97511.0,0.000142]
[1739652086011,0.47192788,97512.0,97511.0,0.000142]
[1739652086212,0.47192788,97512.0,97511.0,0.23337]
[1739652086421,0.47192788,97512.0,97511.0,0.28037]
[1739652087309,0.00032788,97512.0,97511.0,0.28037]
[1739652089512,0.00032788,97512.0,97511.0,0.28137]
[1739652090141,0.00032788,97512.0,97511.0,0.30052433]
[1739652090399,0.00032788,97512.0,97511.0,0.30152433]
[1739652094719,0.00032788,97512.0,97511.0,0.30052433]
[1739652095037,0.00132788,97512.0,97511.0,0.30552433]
[1739652095931,0.00232788,97512.0,97511.0,0.30552433]
[1739652101015,0.00232788,97512.0,97511.0,0.22612433]
[1739652101805,0.00032788,97512.0,97511.0,0.22112433]
[1739652102096,0.00132788,97512.0,97511.0,0.22612433]
[1739652102507,0.00032788,97512.0,97511.0,0.22112433]
[1739652102900,0.00132788,97512.0,97511.0,0.22612433]
[1739652104873,0.00032788,97512.0,97511.0,0.22112433]
[1739652105075,0.00132788,97512.0,97511.0,0.22612433]
[1739652105582,0.00032788,97512.0,97511.0,0.22112433]
[1739652106011,0.00132788,97512.0,97511.0,0.22612433]
[1739652109940,0.00132788,97512.0,97511.0,0.17912433]
[1739652110211,0.00132788,97512.0,97511.0,0.15897]
[1739652110681,0.00032788,97512.0,97511.0,0.15397]
[1739652111179,0.00032788,97512.0,97511.0,0.15897]
[1739652111628,0.00032788,97512.0,97511.0,0.15397]
[1739652111878,0.00032788,97512.0,97511.0,0.15597]
[1739652112550,0.00032788,97512.0,97511.0,0.002142]
[1739652112765,0.00032788,97512.0,97511.0,0.15397]
[1739652113997,0.00032788,97512.0,97511.0,0.000142]
[1739652114220,0.00032788,97512.0,97511.0,0.002142]
[1739652114623,0.00032788,97512.0,97511.0,0.000142]
[1739652114823,0.00032788,97512.0,97511.0,0.001142]
[1739652115033,0.00132788,97512.0,97511.0,0.001142]
[1739652116371,0.01167841,97512.0,97511.0,0.001142]
[1739652120247,0.01167841,97512.0,97511.0,0.000142]
[1739652120441,0.01167841,97512.0,97511.0,0.001142]
[1739652120844,0.01067841,97512.0,97511.0,0.001142]
[1739652121353,0.01167841,97512.0,97511.0,0.001142]
[1739652122453,0.00132788,97512.0,97511.0,0.001142]
[1739652126797,0.00132788,97512.0,97511.0,0.000142]
[1739652126946,0.00132788,97512.0,97511.0,0.001142]
[1739652127357,0.00132788,97512.0,97511.0,0.000142]
[1739652127590,0.00032788,97512.0,97511.0,0.000142]
[1739652127790,0.00132788,97512.0,97511.0,0.000142]
[1739652128019,0.00032788,97512.0,97511.0,0.000142]
[1739652128419,0.00132788,97512.0,97511.0,0.000142]
[1739652132460,0.15515488,97512.0,97511.0,0.000142]
[1739652133444,0.25765853,97512.0,97511.0,0.000142]
[1739652135497,0.27684368,97512.0,97511.0,0.000142]
[1739652136483,0.59844368,97512.0,97511.0,0.000142]
[1739652136683,0.60803531,97512.0,97511.0,0.000142]
[1739652137103,0.61547508,97512.0,97511.0,0.000142]
[1739652137676,0.62247508,97512.0,97511.0,0.000142]
[1739652138007,0.61447508,97512.0,97511.0,0.000142]
[1739652138211,0.62147508,97512.0,97511.0,0.000142]
[1739652138424,0.61447508,97512.0,97511.0,0.000142]
[1739652138762,0.62147508,97512.0,97511.0,0.000142]
[1739652138985,0.61447508,97512.0,97511.0,0.000142]
[1739652139188,0.62147508,97512.0,97511.0,0.000142]
[1739652139602,0.61447508,97512.0,97511.0,0.000142]
[1739652139800,0.62147508,97512.0,97511.0,0.000142]
[1739652140228,0.62847508,97512.0,97511.0,0.000142]
[1739652140432,0.77847508,97512.0,97511.0,0.000142]
[1739652140655,0.77147508,97512.0,97511.0,0.000142]
[1739652140859,0.77847508,97512.0,97511.0,0.000142]
[1739652141195,0.84737508,97512.0,97511.0,0.000142]
[1739652141351,0.90137508,97512.0,97511.0,0.000142]
[1739652141773,0.89437508,97512.0,97511.0,0.000142]
[1739652141979,0.88737508,97512.0,97511.0,0.000142]
[1739652142221,0.89437508,97512.0,97511.0,0.000142]
[1739652142414,0.90137508,97512.0,97511.0,0.000142]
[1739652142760,0.89437508,97512.0,97511.0,0.000142]
[1739652142887,0.93203485,97512.0,97511.0,0.000142]
[1739652143297,0.92503485,97512.0,97511.0,0.000142]
[1739652143725,0.93203485,97512.0,97511.0,0.000142]
[1739652146012,0.90137508,97512.0,97511.0,0.000142]
[1739652147050,0.43419177,97496.0,97495.0,0.0001421]
[1739652147247,0.53669542,97496.0,97495.0,0.0001421]
[1739652147611,0.54626194,97496.0,97495.0,0.0001421]
[1739652148505,0.55326194,97496.0,97495.0,0.0001421]
[1739652148934,0.57244709,97496.0,97495.0,0.0001421]
[1739652149965,0.89404709,97496.0,97495.0,0.0001421]
[1739652150422,0.90104709,97496.0,97495.0,0.0001421]
[1739652154752,1.00355074,97496.0,97495.0,1e-07]
[1739652154929,1.00355074,97496.0,97472.0,0.0009987]
[1739652154930,0.43752777,97473.0,97472.0,0.0009987]
[1739652155126,0.28363977,97473.0,97471.0,0.0002]
[1739652155365,0.47677265,97472.0,97471.0,0.0002]
[1739652155495,0.47549,97472.0,97471.0,0.0002]
[1739652156128,0.47553385,97472.0,97471.0,0.0002]
[1739652157031,0.5780375,97472.0,97471.0,0.0002]
[1739652157762,0.5850375,97472.0,97471.0,0.0002]
[1739652158112,0.5780375,97472.0,97471.0,0.0002]
[1739652158314,0.5920375,97472.0,97471.0,0.0002]
[1739652158703,0.5850375,97472.0,97471.0,0.0002]
[1739652158896,0.5920375,97472.0,97471.0,0.0002]
[1739652159319,0.5850375,97472.0,97471.0,0.0002]
[1739652159597,0.5920375,97472.0,97471.0,0.0002]
[1739652160329,0.5850375,97472.0,97471.0,0.0002]
[1739652160495,0.5920375,97472.0,97471.0,0.0002]
[1739652161224,0.5850375,97472.0,97471.0,0.0002]
[1739652161366,0.5780375,97472.0,97471.0,0.000342]
[1739652161587,0.5920375,97472.0,97471.0,0.000342]
[1739652162068,0.5850375,97472.0,97471.0,0.000342]
[1739652163928,0.5920375,97472.0,97471.0,0.000342]
[1739652170606,0.5850375,97472.0,97471.0,0.000342]
[1739652170805,0.5920375,97472.0,97471.0,0.000342]
[1739652171029,0.60414393,97472.0,97471.0,0.000342]
[1739652171240,0.61114393,97472.0,97471.0,0.000342]
[1739652171439,0.60414393,97472.0,97471.0,0.000342]
[1739652171594,0.59714393,97472.0,97471.0,0.000342]
[1739652171800,0.61114393,97472.0,97471.0,0.000342]
[1739652173734,0.61114393,97472.0,97471.0,0.000342]
[1739652173933,0.62070508,97472.0,97471.0,0.000342]
[1739652174370,0.62835401,97472.0,97471.0,0.000342]
[1739652174842,0.63579378,97472.0,97471.0,0.000342]
[1739652176234,0.62879378,97472.0,97471.0,0.000342]
[1739652176435,0.63579378,97472.0,97471.0,0.000342]
[1739652176634,0.62879378,97472.0,97471.0,0.000342]